[Event "Late-Titled-Tuesday-Blitz-February-06-2024"]
[Site "Chess.com"]
[Date "2024.02.06"]
[Round "10"]
[White "el008"]
[Black "GothamChess"]
[Result "0-1"]
[WhiteElo "2548"]
[BlackElo "2720"]
[TimeControl "180+1"]
[EndTime "15:54:41 PST"]
[Termination "GothamChess won by checkmate"]

1. Nf3 {[%clk 0:02:59.8]} 1... g6 {[%clk 0:02:52.3]} 2. b3 {[%clk 0:02:56.1]}
2... Bg7 {[%clk 0:02:26.3]} 3. d4 {[%clk 0:02:56.6]} 3... d6 {[%clk 0:02:26.4]}
4. Bb2 {[%clk 0:02:56.6]} 4... Nc6 {[%clk 0:02:27]} 5. g3 {[%clk 0:02:57.1]}
5... Bd7 {[%clk 0:02:23.2]} 6. c4 {[%clk 0:02:56.9]} 6... Qc8 {[%clk 0:02:23.1]}
7. Nc3 {[%clk 0:02:56.2]} 7... Bh3 {[%clk 0:02:20.7]} 8. Bxh3 {[%clk 0:02:47.6]}
8... Qxh3 {[%clk 0:02:20.4]} 9. Qd2 {[%clk 0:02:48.3]} 9... Nf6 {[%clk
0:02:15.9]} 10. Ng5 {[%clk 0:02:34.6]} 10... Qg2 {[%clk 0:02:08.9]} 11. O-O-O
{[%clk 0:02:34.3]} 11... Qxf2 {[%clk 0:02:07.8]} 12. Nb5 {[%clk 0:02:23.4]}
12... Bh6 {[%clk 0:01:51.2]} 13. Nxc7+ {[%clk 0:01:44.3]} 13... Kd7 {[%clk
0:01:50.9]} 14. Nxa8 {[%clk 0:01:45.2]} 14... Ne4 {[%clk 0:01:46.8]} 15. Qc2
{[%clk 0:01:45.6]} 15... Nxg5 {[%clk 0:01:19.4]} 16. d5 {[%clk 0:01:33.2]} 16...
Nb4 {[%clk 0:01:02.8]} 17. Qd2 {[%clk 0:01:33.2]} 17... Ne4 {[%clk 0:00:14]} 18.
Qxh6 {[%clk 0:01:31.5]} 18... Qxe2 {[%clk 0:00:14.2]} 19. Rd2 {[%clk 0:01:09]}
19... Nxd2 {[%clk 0:00:14.2]} 20. Qxd2 {[%clk 0:01:08.7]} 20... Nxa2+ {[%clk
0:00:14.1]} 21. Kc2 {[%clk 0:01:09.3]} 21... Nb4+ {[%clk 0:00:13.9]} 22. Kc3
{[%clk 0:00:58.7]} 22... Qxd2+ {[%clk 0:00:11.3]} 23. Kxd2 {[%clk 0:00:59.6]}
23... Rxa8 {[%clk 0:00:11.1]} 24. Ra1 {[%clk 0:00:58.3]} 24... Na6 {[%clk
0:00:10.8]} 25. Bd4 {[%clk 0:00:56]} 25... e5 {[%clk 0:00:08.1]} 26. dxe6+
{[%clk 0:00:56]} 26... fxe6 {[%clk 0:00:09]} 27. Rf1 {[%clk 0:00:56.3]} 27...
Ke7 {[%clk 0:00:08.6]} 28. Bf6+ {[%clk 0:00:56.3]} 28... Kd7 {[%clk 0:00:06.4]}
29. Bc3 {[%clk 0:00:56.6]} 29... Re8 {[%clk 0:00:05.7]} 30. Rf7+ {[%clk
0:00:55.1]} 30... Re7 {[%clk 0:00:06]} 31. Rf8 {[%clk 0:00:55.8]} 31... Nc5
{[%clk 0:00:06.2]} 32. Kc2 {[%clk 0:00:56]} 32... e5 {[%clk 0:00:05.1]} 33. Ra8
{[%clk 0:00:56.3]} 33... a6 {[%clk 0:00:04.7]} 34. b4 {[%clk 0:00:56.5]} 34...
Ne6 {[%clk 0:00:04.6]} 35. Kd3 {[%clk 0:00:56]} 35... Nc7 {[%clk 0:00:04.3]} 36.
Rb8 {[%clk 0:00:56.1]} 36... b5 {[%clk 0:00:04]} 37. c5 {[%clk 0:00:54.6]} 37...
dxc5 {[%clk 0:00:03.1]} 38. bxc5 {[%clk 0:00:55.5]} 38... Kc6 {[%clk 0:00:03.4]}
39. Bb4 {[%clk 0:00:55.4]} 39... Nd5 {[%clk 0:00:03.8]} 40. Ba3 {[%clk
0:00:53.8]} 40... e4+ {[%clk 0:00:02.9]} 41. Ke2 {[%clk 0:00:52.4]} 41... e3
{[%clk 0:00:02.7]} 42. Bb2 {[%clk 0:00:52.8]} 42... b4 {[%clk 0:00:02.7]} 43.
Rc8+ {[%clk 0:00:52.2]} 43... Kb7 {[%clk 0:00:02.7]} 44. Rd8 {[%clk 0:00:52.3]}
44... Kc6 {[%clk 0:00:01.6]} 45. Bd4 {[%clk 0:00:51.5]} 45... Nc3+ {[%clk
0:00:01.3]} 46. Ke1 {[%clk 0:00:51.1]} 46... Kb5 {[%clk 0:00:01.3]} 47. Bf6
{[%clk 0:00:51.2]} 47... Re6 {[%clk 0:00:01.4]} 48. Ra8 {[%clk 0:00:51.5]} 48...
Rxf6 {[%clk 0:00:01.3]} 49. Rb8+ {[%clk 0:00:52.4]} 49... Kxc5 {[%clk
0:00:01.5]} 50. g4 {[%clk 0:00:51.1]} 50... Rc6 {[%clk 0:00:02.2]} 51. h4 {[%clk
0:00:46.7]} 51... Rd6 {[%clk 0:00:02.5]} 52. Rc8+ {[%clk 0:00:45.5]} 52... Kb5
{[%clk 0:00:03.2]} 53. Rxc3 {[%clk 0:00:46.2]} 53... bxc3 {[%clk 0:00:04.1]} 54.
Ke2 {[%clk 0:00:46.9]} 54... Kc4 {[%clk 0:00:04.4]} 55. Kxe3 {[%clk 0:00:46.1]}
55... a5 {[%clk 0:00:05.1]} 56. Kf4 {[%clk 0:00:45]} 56... c2 {[%clk 0:00:05.6]}
57. Kg5 {[%clk 0:00:45.7]} 57... c1=Q# {[%clk 0:00:06.3]} 0-1

[Event "Late-Titled-Tuesday-Blitz-February-06-2024"]
[Site "Chess.com"]
[Date "2024.02.06"]
[Round "10"]
[White "AsterPhoenix"]
[Black "Atousa"]
[Result "1-0"]
[WhiteElo "2644"]
[BlackElo "2488"]
[TimeControl "180+1"]
[EndTime "15:54:45 PST"]
[Termination "AsterPhoenix won on time"]

1. e4 {[%clk 0:03:00.6]} 1... e5 {[%clk 0:02:58.4]} 2. Nf3 {[%clk 0:03:00.7]}
2... Nf6 {[%clk 0:02:58.7]} 3. Nxe5 {[%clk 0:03:00]} 3... d6 {[%clk 0:02:59.3]}
4. Nf3 {[%clk 0:02:59.5]} 4... Nxe4 {[%clk 0:02:59.8]} 5. Bd3 {[%clk 0:02:54.9]}
5... d5 {[%clk 0:02:59.6]} 6. Qe2 {[%clk 0:02:53.5]} 6... Qe7 {[%clk 0:02:53.2]}
7. O-O {[%clk 0:02:27.5]} 7... Nc6 {[%clk 0:02:43.3]} 8. Re1 {[%clk 0:02:14.1]}
8... Bf5 {[%clk 0:02:42.5]} 9. Bb5 {[%clk 0:02:09.1]} 9... Nd6 {[%clk
0:02:04.6]} 10. Qf1 {[%clk 0:01:58]} 10... Be6 {[%clk 0:02:02.9]} 11. Nd4 {[%clk
0:01:53]} 11... Nxb5 {[%clk 0:01:51.3]} 12. Qxb5 {[%clk 0:01:53.9]} 12... Qb4
{[%clk 0:01:40.5]} 13. Qxb4 {[%clk 0:01:48.6]} 13... Nxb4 {[%clk 0:01:27.7]} 14.
a3 {[%clk 0:01:40]} 14... Nc6 {[%clk 0:01:20.4]} 15. Nxc6 {[%clk 0:01:26.8]}
15... bxc6 {[%clk 0:01:19.9]} 16. d3 {[%clk 0:01:25.3]} 16... Bd6 {[%clk
0:01:16.4]} 17. Be3 {[%clk 0:01:22]} 17... O-O {[%clk 0:01:15.7]} 18. Nd2 {[%clk
0:01:22.1]} 18... c5 {[%clk 0:01:06.8]} 19. c4 {[%clk 0:01:08.3]} 19... Rab8
{[%clk 0:00:55.9]} 20. Rab1 {[%clk 0:01:08.1]} 20... Bf5 {[%clk 0:00:51.4]} 21.
cxd5 {[%clk 0:01:03.7]} 21... Bxd3 {[%clk 0:00:51.5]} 22. Rbc1 {[%clk
0:01:03.4]} 22... Rxb2 {[%clk 0:00:51.5]} 23. h4 {[%clk 0:00:58.1]} 23... f6
{[%clk 0:00:50.1]} 24. Nc4 {[%clk 0:00:51.8]} 24... Bxc4 {[%clk 0:00:30.1]} 25.
Rxc4 {[%clk 0:00:51.6]} 25... Re8 {[%clk 0:00:23.1]} 26. Rd1 {[%clk 0:00:44]}
26... Rb3 {[%clk 0:00:21]} 27. Bxc5 {[%clk 0:00:43.7]} 27... Bxc5 {[%clk
0:00:18.5]} 28. Rxc5 {[%clk 0:00:44.6]} 28... Re7 {[%clk 0:00:18.9]} 29. Ra5
{[%clk 0:00:43.2]} 29... Rd7 {[%clk 0:00:18.6]} 30. Rxa7 {[%clk 0:00:42.1]}
30... Rb5 {[%clk 0:00:19]} 31. d6 {[%clk 0:00:41.5]} 31... Rxd6 {[%clk
0:00:18.1]} 32. Rc1 {[%clk 0:00:31.1]} 32... c6 {[%clk 0:00:06.9]} 33. a4 {[%clk
0:00:31.2]} 33... Rb2 {[%clk 0:00:06.6]} 34. Re1 {[%clk 0:00:31]} 34... h5
{[%clk 0:00:03.1]} 35. a5 {[%clk 0:00:17.1]} 35... Rdd2 {[%clk 0:00:02.5]} 36.
Ree7 {[%clk 0:00:14.5]} 36... Rxf2 {[%clk 0:00:01.9]} 37. Rxg7+ {[%clk
0:00:15.1]} 37... Kf8 {[%clk 0:00:02.5]} 38. a6 {[%clk 0:00:13.4]} 38... Rfc2
{[%clk 0:00:01.3]} 39. Rg3 {[%clk 0:00:11.4]} 1-0

[Event "Late-Titled-Tuesday-Blitz-February-06-2024"]
[Site "Chess.com"]
[Date "2024.02.06"]
[Round "10"]
[White "FairChess_on_YouTube"]
[Black "tptagain"]
[Result "1-0"]
[WhiteElo "3066"]
[BlackElo "2963"]
[TimeControl "180+1"]
[EndTime "15:54:46 PST"]
[Termination "FairChess_on_YouTube won by resignation"]

1. e4 {[%clk 0:03:00.9]} 1... e5 {[%clk 0:03:00]} 2. Bc4 {[%clk 0:02:59.6]} 2...
Nc6 {[%clk 0:02:59.1]} 3. d3 {[%clk 0:02:59.1]} 3... Nf6 {[%clk 0:02:57.7]} 4.
Nc3 {[%clk 0:02:56.6]} 4... Bc5 {[%clk 0:02:55.5]} 5. f4 {[%clk 0:02:49.7]} 5...
O-O {[%clk 0:02:52.7]} 6. Nf3 {[%clk 0:02:47.4]} 6... exf4 {[%clk 0:02:47.2]} 7.
Bxf4 {[%clk 0:02:46.2]} 7... d6 {[%clk 0:02:46.7]} 8. Bg5 {[%clk 0:02:38.3]}
8... h6 {[%clk 0:02:44.9]} 9. Bh4 {[%clk 0:02:38.1]} 9... Be6 {[%clk 0:02:31.9]}
10. Qe2 {[%clk 0:02:16.3]} 10... Nd4 {[%clk 0:02:29.4]} 11. Nxd4 {[%clk
0:02:14.3]} 11... Bxd4 {[%clk 0:02:30.3]} 12. Bb3 {[%clk 0:01:53.5]} 12... a5
{[%clk 0:02:21.3]} 13. Bf2 {[%clk 0:01:22.4]} 13... Bxf2+ {[%clk 0:02:10.1]} 14.
Qxf2 {[%clk 0:01:23.3]} 14... Ng4 {[%clk 0:02:08.9]} 15. Qf4 {[%clk 0:01:10.4]}
15... Qh4+ {[%clk 0:01:59.1]} 16. g3 {[%clk 0:01:10.3]} 16... Qg5 {[%clk
0:01:40.1]} 17. h3 {[%clk 0:00:59.1]} 17... Ne5 {[%clk 0:01:39.7]} 18. h4 {[%clk
0:00:51.4]} 18... Qg4 {[%clk 0:01:37]} 19. Rf1 {[%clk 0:00:41.1]} 19... g5
{[%clk 0:00:46]} 20. Qxg4 {[%clk 0:00:31.9]} 20... Nxg4 {[%clk 0:00:46.2]} 21.
Kd2 {[%clk 0:00:27.9]} 21... c6 {[%clk 0:00:44.6]} 22. Ne2 {[%clk 0:00:26.5]}
22... a4 {[%clk 0:00:38.7]} 23. Bxe6 {[%clk 0:00:26.3]} 23... fxe6 {[%clk
0:00:39.2]} 24. hxg5 {[%clk 0:00:23.3]} 24... hxg5 {[%clk 0:00:38.1]} 25. Nd4
{[%clk 0:00:23.9]} 25... Rfe8 {[%clk 0:00:25.4]} 26. Rh1 {[%clk 0:00:17.1]}
26... Kg7 {[%clk 0:00:21.7]} 27. Rh5 {[%clk 0:00:14.5]} 27... Kg6 {[%clk
0:00:21.4]} 28. Rah1 {[%clk 0:00:15.1]} 28... Re7 {[%clk 0:00:17.8]} 29. Nf3
{[%clk 0:00:13.7]} 29... Ra5 {[%clk 0:00:17.7]} 30. e5 {[%clk 0:00:14.3]} 30...
Nxe5 {[%clk 0:00:10.3]} 31. Rxg5+ {[%clk 0:00:13.8]} 31... Kf7 {[%clk
0:00:09.7]} 32. Nxe5+ {[%clk 0:00:12.9]} 32... Rxe5 {[%clk 0:00:09.5]} 33. Rxe5
{[%clk 0:00:11.2]} 33... dxe5 {[%clk 0:00:09.8]} 34. Rh7+ {[%clk 0:00:11.4]}
34... Kf6 {[%clk 0:00:10.4]} 35. Rxe7 {[%clk 0:00:12.1]} 35... Kxe7 {[%clk
0:00:11]} 36. Ke3 {[%clk 0:00:12.7]} 36... Kf6 {[%clk 0:00:07]} 37. Ke4 {[%clk
0:00:13]} 37... c5 {[%clk 0:00:07]} 38. c4 {[%clk 0:00:11.7]} 38... b6 {[%clk
0:00:05.7]} 39. a3 {[%clk 0:00:11.1]} 1-0

[Event "Late-Titled-Tuesday-Blitz-February-06-2024"]
[Site "Chess.com"]
[Date "2024.02.06"]
[Round "10"]
[White "RantomOpening"]
[Black "jcmesafischer"]
[Result "1-0"]
[WhiteElo "2503"]
[BlackElo "2350"]
[TimeControl "180+1"]
[EndTime "15:54:46 PST"]
[Termination "RantomOpening won by checkmate"]

1. c4 {[%clk 0:03:00.8]} 1... Nf6 {[%clk 0:02:57]} 2. Nf3 {[%clk 0:03:00.5]}
2... e6 {[%clk 0:02:55.8]} 3. Nc3 {[%clk 0:02:59.9]} 3... d5 {[%clk 0:02:46.8]}
4. e3 {[%clk 0:02:59.9]} 4... b6 {[%clk 0:02:45.6]} 5. b3 {[%clk 0:02:59.2]}
5... c5 {[%clk 0:02:45.7]} 6. Bb2 {[%clk 0:02:58.6]} 6... Bb7 {[%clk 0:02:44.1]}
7. g3 {[%clk 0:02:51]} 7... d4 {[%clk 0:02:38]} 8. exd4 {[%clk 0:02:50.7]} 8...
cxd4 {[%clk 0:02:37.5]} 9. Nb1 {[%clk 0:02:48.6]} 9... e5 {[%clk 0:02:28.8]} 10.
Bg2 {[%clk 0:02:47.2]} 10... Nbd7 {[%clk 0:02:26.8]} 11. d3 {[%clk 0:02:47.1]}
11... Bc5 {[%clk 0:02:20]} 12. O-O {[%clk 0:02:47.1]} 12... O-O {[%clk
0:02:19.7]} 13. a3 {[%clk 0:02:47.4]} 13... a5 {[%clk 0:02:20]} 14. Nbd2 {[%clk
0:02:47.5]} 14... Re8 {[%clk 0:02:18.5]} 15. Re1 {[%clk 0:02:44]} 15... Bd6
{[%clk 0:02:17.6]} 16. Qc2 {[%clk 0:02:39.2]} 16... Qc7 {[%clk 0:02:15.4]} 17.
Re2 {[%clk 0:02:24.1]} 17... Nf8 {[%clk 0:01:49.6]} 18. Rae1 {[%clk 0:02:22.5]}
18... N6d7 {[%clk 0:01:49.2]} 19. Nxd4 {[%clk 0:02:18.9]} 19... Bxg2 {[%clk
0:01:44.2]} 20. Kxg2 {[%clk 0:02:19.8]} 20... Ng6 {[%clk 0:01:19.8]} 21. Nb5
{[%clk 0:02:18]} 21... Qc6+ {[%clk 0:01:18.2]} 22. Nf3 {[%clk 0:02:17]} 22... f5
{[%clk 0:01:13.9]} 23. Nd4 {[%clk 0:02:15.4]} 23... exd4 {[%clk 0:00:53.6]} 24.
Rxe8+ {[%clk 0:02:13.8]} 24... Rxe8 {[%clk 0:00:47.7]} 25. Rxe8+ {[%clk
0:02:14.7]} 25... Kf7 {[%clk 0:00:48]} 26. Re1 {[%clk 0:02:07]} 26... Nde5
{[%clk 0:00:41.9]} 27. Qe2 {[%clk 0:02:07]} 27... Bc5 {[%clk 0:00:38]} 28. h4
{[%clk 0:01:47.5]} 28... h5 {[%clk 0:00:23.4]} 29. Bc1 {[%clk 0:01:19.2]} 29...
Be7 {[%clk 0:00:16]} 30. Bg5 {[%clk 0:01:10.5]} 30... Bf6 {[%clk 0:00:11.6]} 31.
Bxf6 {[%clk 0:01:09]} 31... Kxf6 {[%clk 0:00:11.1]} 32. Qxe5+ {[%clk 0:01:05.2]}
32... Nxe5 {[%clk 0:00:09.7]} 33. Rxe5 {[%clk 0:01:06.1]} 33... g6 {[%clk
0:00:07]} 34. Rd5 {[%clk 0:01:06.4]} 34... a4 {[%clk 0:00:03.5]} 35. b4 {[%clk
0:01:06.3]} 35... Qe6 {[%clk 0:00:02.5]} 36. Rxd4 {[%clk 0:01:06.7]} 36... Qe2
{[%clk 0:00:02.7]} 37. Rd6+ {[%clk 0:01:05.5]} 37... Ke7 {[%clk 0:00:03]} 38.
Rxb6 {[%clk 0:01:02.1]} 38... Qb2 {[%clk 0:00:03.6]} 39. c5 {[%clk 0:01:02.1]}
39... Qxa3 {[%clk 0:00:04]} 40. c6 {[%clk 0:01:02.6]} 40... Qb3 {[%clk
0:00:02.3]} 41. Rb5 {[%clk 0:00:41.7]} 41... a3 {[%clk 0:00:01.8]} 42. c7 {[%clk
0:00:41.6]} 42... Kd7 {[%clk 0:00:01.9]} 43. Rc5 {[%clk 0:00:41.9]} 43... Kc8
{[%clk 0:00:02.6]} 44. Nd4 {[%clk 0:00:41.4]} 44... Qb2 {[%clk 0:00:02.5]} 45.
Nb5 {[%clk 0:00:40.6]} 45... a2 {[%clk 0:00:02.6]} 46. Nd6+ {[%clk 0:00:40.8]}
46... Kd7 {[%clk 0:00:03.3]} 47. c8=Q+ {[%clk 0:00:41.6]} 47... Kxd6 {[%clk
0:00:04.2]} 48. Qc7+ {[%clk 0:00:40.3]} 48... Ke6 {[%clk 0:00:04.8]} 49. Rc6+
{[%clk 0:00:39.3]} 49... Kd5 {[%clk 0:00:05.4]} 50. Qd6# {[%clk 0:00:39.8]} 1-0

[Event "Late-Titled-Tuesday-Blitz-February-06-2024"]
[Site "Chess.com"]
[Date "2024.02.06"]
[Round "10"]
[White "dretch"]
[Black "dropstoneDP"]
[Result "1-0"]
[WhiteElo "2857"]
[BlackElo "2979"]
[TimeControl "180+1"]
[EndTime "15:54:47 PST"]
[Termination "dretch won by resignation"]

1. d4 {[%clk 0:03:00.9]} 1... d5 {[%clk 0:02:57.9]} 2. c4 {[%clk 0:03:01.2]}
2... dxc4 {[%clk 0:02:49.1]} 3. e3 {[%clk 0:03:00.9]} 3... e6 {[%clk 0:02:48.7]}
4. Bxc4 {[%clk 0:03:01.1]} 4... Nf6 {[%clk 0:02:49.2]} 5. Nf3 {[%clk 0:03:01.3]}
5... c5 {[%clk 0:02:49.6]} 6. O-O {[%clk 0:03:01.5]} 6... Nc6 {[%clk 0:02:49.4]}
7. Qe2 {[%clk 0:03:01.5]} 7... a6 {[%clk 0:02:48.1]} 8. Rd1 {[%clk 0:02:57.3]}
8... b5 {[%clk 0:02:46]} 9. d5 {[%clk 0:02:50.9]} 9... Nxd5 {[%clk 0:02:21.9]}
10. e4 {[%clk 0:02:22.3]} 10... bxc4 {[%clk 0:02:21.3]} 11. exd5 {[%clk
0:02:22.4]} 11... Nd4 {[%clk 0:02:21.7]} 12. Nxd4 {[%clk 0:02:22.4]} 12... cxd4
{[%clk 0:02:22.2]} 13. Rxd4 {[%clk 0:02:22.4]} 13... Bc5 {[%clk 0:02:18.3]} 14.
Rxc4 {[%clk 0:02:21.9]} 14... Be7 {[%clk 0:02:07.4]} 15. Nc3 {[%clk 0:01:58.9]}
15... exd5 {[%clk 0:02:05.4]} 16. Rd4 {[%clk 0:01:54.6]} 16... Be6 {[%clk
0:02:04.2]} 17. Nxd5 {[%clk 0:01:49.9]} 17... Bxd5 {[%clk 0:01:21]} 18. Bg5
{[%clk 0:01:04.2]} 18... f6 {[%clk 0:01:12.8]} 19. Rad1 {[%clk 0:00:57.4]} 19...
fxg5 {[%clk 0:01:08.2]} 20. Rxd5 {[%clk 0:00:56.3]} 20... Qc7 {[%clk 0:00:42.4]}
21. Qe6 {[%clk 0:00:47.1]} 21... Ra7 {[%clk 0:00:41.7]} 22. b4 {[%clk
0:00:36.5]} 22... Rf8 {[%clk 0:00:40.4]} 23. Rc5 {[%clk 0:00:35.4]} 23... Rf6
{[%clk 0:00:19.3]} 24. Qg8+ {[%clk 0:00:26.1]} 24... Bf8 {[%clk 0:00:15]} 25.
Rxc7 {[%clk 0:00:24.7]} 25... Rxc7 {[%clk 0:00:15.9]} 26. g3 {[%clk 0:00:21.8]}
26... h6 {[%clk 0:00:15.2]} 27. Re1+ {[%clk 0:00:19.6]} 27... Kd8 {[%clk
0:00:14.9]} 28. Qd5+ {[%clk 0:00:18.9]} 28... Bd6 {[%clk 0:00:13.9]} 29. Qa8+
{[%clk 0:00:18.7]} 29... Rc8 {[%clk 0:00:14.3]} 30. Re8+ {[%clk 0:00:17.6]}
30... Kxe8 {[%clk 0:00:14.7]} 31. Qxc8+ {[%clk 0:00:18]} 31... Kf7 {[%clk
0:00:14.1]} 32. Qxa6 {[%clk 0:00:17.6]} 32... h5 {[%clk 0:00:11.5]} 33. Qc4+
{[%clk 0:00:17.7]} 33... Kg6 {[%clk 0:00:12]} 34. a4 {[%clk 0:00:18.1]} 34...
Bb8 {[%clk 0:00:11.3]} 35. Qd4 {[%clk 0:00:17.3]} 35... Rf7 {[%clk 0:00:10.5]}
36. Qe4+ {[%clk 0:00:16.7]} 36... Kh6 {[%clk 0:00:09.9]} 37. Qe6+ {[%clk
0:00:16.4]} 37... Rf6 {[%clk 0:00:10.2]} 38. Qe7 {[%clk 0:00:15.2]} 38... Bd6
{[%clk 0:00:10.5]} 39. Qb7 {[%clk 0:00:14.9]} 39... Be5 {[%clk 0:00:10.3]} 40.
Qd5 {[%clk 0:00:14.2]} 40... Bc3 {[%clk 0:00:10.3]} 41. Qc5 {[%clk 0:00:14.2]}
41... Be1 {[%clk 0:00:09.8]} 42. a5 {[%clk 0:00:14.7]} 42... g4 {[%clk
0:00:08.7]} 43. Qe3+ {[%clk 0:00:13.7]} 1-0

[Event "Late-Titled-Tuesday-Blitz-February-06-2024"]
[Site "Chess.com"]
[Date "2024.02.06"]
[Round "10"]
[White "ImportedItalianMaple"]
[Black "Doublekk14"]
[Result "1-0"]
[WhiteElo "2490"]
[BlackElo "2307"]
[TimeControl "180+1"]
[EndTime "15:54:52 PST"]
[Termination "ImportedItalianMaple won on time"]

1. Nf3 {[%clk 0:02:55.6]} 1... Nf6 {[%clk 0:02:59.3]} 2. g3 {[%clk 0:02:55.1]}
2... e6 {[%clk 0:02:59.1]} 3. Bg2 {[%clk 0:02:55.1]} 3... d5 {[%clk 0:02:59.1]}
4. O-O {[%clk 0:02:55.6]} 4... c5 {[%clk 0:02:58.9]} 5. c4 {[%clk 0:02:50.7]}
5... Nc6 {[%clk 0:02:58.5]} 6. cxd5 {[%clk 0:02:49.8]} 6... exd5 {[%clk
0:02:58.3]} 7. d4 {[%clk 0:02:50.2]} 7... h6 {[%clk 0:02:57.4]} 8. Nc3 {[%clk
0:02:49.3]} 8... Be7 {[%clk 0:02:56.7]} 9. dxc5 {[%clk 0:02:49.1]} 9... Bxc5
{[%clk 0:02:56.6]} 10. a3 {[%clk 0:02:49.2]} 10... a5 {[%clk 0:02:55.9]} 11. Qc2
{[%clk 0:02:28.4]} 11... Bb6 {[%clk 0:02:49.8]} 12. Rd1 {[%clk 0:02:24.9]} 12...
O-O {[%clk 0:02:47.9]} 13. Nxd5 {[%clk 0:02:07.3]} 13... Nxd5 {[%clk 0:02:32.5]}
14. e4 {[%clk 0:02:07.8]} 14... Ndb4 {[%clk 0:02:20.6]} 15. axb4 {[%clk
0:02:03.7]} 15... Nxb4 {[%clk 0:02:19.7]} 16. Qe2 {[%clk 0:01:52.7]} 16... Qe7
{[%clk 0:02:08.8]} 17. Bf4 {[%clk 0:01:52.8]} 17... Bc5 {[%clk 0:01:58.4]} 18.
Rac1 {[%clk 0:01:45.1]} 18... Bg4 {[%clk 0:01:46.8]} 19. Qb5 {[%clk 0:01:39.7]}
19... b6 {[%clk 0:01:38.9]} 20. h3 {[%clk 0:01:18.8]} 20... Bxf3 {[%clk
0:01:26.5]} 21. Bxf3 {[%clk 0:01:18.8]} 21... Rad8 {[%clk 0:01:25.4]} 22. Kg2
{[%clk 0:01:12.5]} 22... g5 {[%clk 0:00:59.6]} 23. Be3 {[%clk 0:00:45.9]} 23...
Bxe3 {[%clk 0:00:45.5]} 24. fxe3 {[%clk 0:00:46.8]} 24... Qf6 {[%clk 0:00:45.2]}
25. e5 {[%clk 0:00:41.3]} 25... Qe6 {[%clk 0:00:29.7]} 26. Bg4 {[%clk 0:00:39]}
26... Qb3 {[%clk 0:00:24.2]} 27. Qxb6 {[%clk 0:00:33.1]} 27... Qxb2+ {[%clk
0:00:20]} 28. Kg1 {[%clk 0:00:33.6]} 28... Rd2 {[%clk 0:00:16.4]} 29. Rxd2
{[%clk 0:00:29.4]} 29... Qxd2 {[%clk 0:00:14.6]} 30. Rd1 {[%clk 0:00:29.6]}
30... Qb2 {[%clk 0:00:06.6]} 31. Qd4 {[%clk 0:00:18.4]} 31... Qxd4 {[%clk
0:00:04]} 32. exd4 {[%clk 0:00:18.6]} 32... Rd8 {[%clk 0:00:04]} 33. Bf3 {[%clk
0:00:17.7]} 33... Nd5 {[%clk 0:00:03.6]} 34. Ra1 {[%clk 0:00:16.7]} 34... f6
{[%clk 0:00:02.5]} 35. Rxa5 {[%clk 0:00:16]} 35... Ne3 {[%clk 0:00:02]} 36. Ra4
{[%clk 0:00:12.7]} 36... Nd5 {[%clk 0:00:01.2]} 37. Ra8 {[%clk 0:00:11.2]} 37...
Ne3 {[%clk 0:00:01.3]} 38. Rxd8+ {[%clk 0:00:10.9]} 38... Kf7 {[%clk 0:00:02.1]}
39. Rd7+ {[%clk 0:00:10.5]} 1-0

[Event "Late-Titled-Tuesday-Blitz-February-06-2024"]
[Site "Chess.com"]
[Date "2024.02.06"]
[Round "10"]
[White "IsaqueGoncalvesSanto"]
[Black "LUISMIGUELOV"]
[Result "0-1"]
[WhiteElo "1929"]
[BlackElo "2192"]
[TimeControl "180+1"]
[EndTime "15:54:57 PST"]
[Termination "LUISMIGUELOV won on time"]

1. d4 {[%clk 0:03:00.4]} 1... d5 {[%clk 0:02:56.1]} 2. c4 {[%clk 0:02:59.6]}
2... c6 {[%clk 0:02:55.6]} 3. Nc3 {[%clk 0:02:59.2]} 3... Nf6 {[%clk 0:02:55.8]}
4. Nf3 {[%clk 0:02:58.4]} 4... dxc4 {[%clk 0:02:52.9]} 5. a4 {[%clk 0:02:56.4]}
5... Bf5 {[%clk 0:02:52.4]} 6. Ne5 {[%clk 0:02:56.1]} 6... e6 {[%clk 0:02:52.4]}
7. Nxc4 {[%clk 0:02:53.9]} 7... Bb4 {[%clk 0:02:52.7]} 8. Ne3 {[%clk 0:02:44.6]}
8... O-O {[%clk 0:02:47.9]} 9. Nxf5 {[%clk 0:02:43.8]} 9... exf5 {[%clk
0:02:47.3]} 10. e3 {[%clk 0:02:43.8]} 10... Re8 {[%clk 0:02:44.6]} 11. Be2
{[%clk 0:02:43.3]} 11... Nd5 {[%clk 0:02:40.1]} 12. Qc2 {[%clk 0:02:40]} 12...
f4 {[%clk 0:02:35.5]} 13. e4 {[%clk 0:02:35.6]} 13... f3 {[%clk 0:02:17.6]} 14.
gxf3 {[%clk 0:02:31]} 14... Nf6 {[%clk 0:02:14.4]} 15. Be3 {[%clk 0:02:27.5]}
15... Na6 {[%clk 0:02:10.7]} 16. h4 {[%clk 0:02:20.3]} 16... Bf8 {[%clk
0:02:07]} 17. Qb3 {[%clk 0:02:15.5]} 17... Nb4 {[%clk 0:02:02.1]} 18. h5 {[%clk
0:02:03.3]} 18... h6 {[%clk 0:02:01]} 19. Rg1 {[%clk 0:02:00.7]} 19... Kh7
{[%clk 0:01:57.4]} 20. Qxf7 {[%clk 0:01:34.5]} 20... Re7 {[%clk 0:01:52.2]} 21.
Qg6+ {[%clk 0:01:33.5]} 21... Kh8 {[%clk 0:01:49.3]} 22. Rc1 {[%clk 0:01:27.7]}
22... Qe8 {[%clk 0:01:45.6]} 23. Qf5 {[%clk 0:01:20.1]} 23... Qxh5 {[%clk
0:01:43]} 24. Qa5 {[%clk 0:01:14.7]} 24... Qxa5 {[%clk 0:01:40.8]} 25. Kf1
{[%clk 0:00:56.3]} 25... Rae8 {[%clk 0:01:38.9]} 26. e5 {[%clk 0:00:54.8]} 26...
Nfd5 {[%clk 0:01:36]} 27. Ne4 {[%clk 0:00:51.9]} 27... Nxe3+ {[%clk 0:01:33.8]}
28. fxe3 {[%clk 0:00:51.9]} 28... Nd5 {[%clk 0:01:32.4]} 29. Kf2 {[%clk
0:00:45.8]} 29... Rf7 {[%clk 0:01:28.7]} 30. f4 {[%clk 0:00:44.8]} 30... Nxf4
{[%clk 0:01:26.5]} 31. exf4 {[%clk 0:00:42.4]} 31... Rxf4+ {[%clk 0:01:26]} 32.
Ke3 {[%clk 0:00:42.2]} 32... Rxe4+ {[%clk 0:01:22.2]} 33. Kxe4 {[%clk
0:00:42.1]} 33... Qd2 {[%clk 0:01:21.9]} 34. Bd3 {[%clk 0:00:37.6]} 34... c5
{[%clk 0:01:07.9]} 35. Rc2 {[%clk 0:00:36.6]} 35... Qb4 {[%clk 0:01:00.2]} 36.
Rc4 {[%clk 0:00:31.9]} 36... Qxb2 {[%clk 0:00:58.9]} 37. Rb1 {[%clk 0:00:29.4]}
37... Qg2+ {[%clk 0:00:57.1]} 38. Ke3 {[%clk 0:00:19.5]} 38... cxd4+ {[%clk
0:00:55.6]} 39. Kxd4 {[%clk 0:00:18.7]} 39... Qf2+ {[%clk 0:00:54.5]} 40. Kc3
{[%clk 0:00:18.3]} 40... b6 {[%clk 0:00:49.4]} 41. Rf1 {[%clk 0:00:16]} 41...
Qa2 {[%clk 0:00:45.5]} 42. Rc7 {[%clk 0:00:13.2]} 42... Qa3+ {[%clk 0:00:42.3]}
43. Kd2 {[%clk 0:00:12.6]} 43... Bb4+ {[%clk 0:00:40]} 44. Ke2 {[%clk
0:00:12.5]} 44... Rxe5+ {[%clk 0:00:37.1]} 45. Kf3 {[%clk 0:00:08.8]} 45...
Qxd3+ {[%clk 0:00:36]} 46. Kf4 {[%clk 0:00:07]} 46... Rf5+ {[%clk 0:00:35.6]}
47. Kg4 {[%clk 0:00:06.4]} 47... Rxf1 {[%clk 0:00:34.8]} 48. a5 {[%clk
0:00:04.3]} 48... bxa5 {[%clk 0:00:33.6]} 0-1